bitfinex/quotes_SOLUSD_20220102
["timestamp","ask_amount","ask_price","bid_price","bid_amount"]
[1641130164049,1.87032489,176.09,175.97,0.5]
[1641130164452,1.61032489,176.07,175.97,0.5]
[1641130164648,10.13132489,176.07,175.98,8.5202]
[1641130164849,10.39132489,176.07,175.98,0.5]
[1641130165050,1.61032489,176.06,175.98,0.5]
[1641130165261,22.60530048,176.05,175.98,0.5]
[1641130165452,22.60530048,176.05,175.94,28.9012]
[1641130165651,22.86530048,176.05,175.94,28.9012]
[1641130166352,22.86530048,176.05,175.97,8.521]
[1641130166557,22.86530048,176.05,175.97,8.781]
[1641130166752,22.86530048,176.05,175.97,9.281]
[1641130167155,22.86530048,176.05,175.97,9.021]
[1641130167954,22.86530048,176.05,175.97,0.5]
[1641130168455,22.86530048,176.05,175.91,29.165]
[1641130168857,22.86530048,176.05,175.91,30.59169368]
[1641130169257,22.86530048,176.05,175.96,8.5215]
[1641130169455,0.26,176.05,175.96,9.0215]
[1641130169654,0.26,176.05,175.96,9.2815]
[1641130169854,1.87032489,176.06,175.96,9.2815]
[1641130170858,0.26,176.06,175.96,9.2815]
[1641130171058,40.29779654,176.07,175.96,9.2815]
[1641130171658,1.61032489,176.06,175.96,9.2815]
[1641130172060,1.87032489,176.06,175.96,9.2815]
[1641130172257,0.26,176.06,175.96,9.2815]
[1641130172659,38.68747165,176.07,175.96,9.2815]
[1641130176561,37.18747165,176.07,175.96,9.2815]
[1641130178062,36.92747165,176.07,175.96,9.2815]
[1641130178464,29.90657165,176.07,175.96,9.2815]
[1641130178864,41.497,176.09,175.96,9.2815]
[1641130179062,1.2871,176.09,175.96,9.2815]
[1641130179964,30.85622857,176.08,175.96,9.2815]
[1641130180365,31.11622857,176.08,175.96,9.2815]
[1641130188599,32.72655346,176.08,175.96,9.2815]
[1641130191009,32.72655346,176.08,176.0,8.5196]
[1641130191414,32.72655346,176.08,176.0,9.0196]
[1641130191608,32.46655346,176.08,176.0,9.2796]
[1641130192010,32.46655346,176.08,176.0,9.0196]
[1641130192912,1.61032489,176.08,176.0,9.0196]
[1641130193110,1.87032489,176.08,176.0,9.2796]
[1641130193311,1.61032489,176.08,176.0,9.2796]
[1641130194913,1.61032489,176.1,176.0,9.2796]
[1641130195713,1.61032489,176.1,176.01,1.3376]
[1641130195915,1.61032489,176.1,176.05,8.5163]
[1641130196114,1.61032489,176.11,176.05,8.7763]
[1641130196314,1.61032489,176.11,176.05,9.2763]
[1641130196514,1.61032489,176.11,176.05,9.0163]
[1641130196714,1.61032489,176.12,176.05,9.0163]
[1641130197119,1.87032489,176.12,176.05,9.0163]
[1641130197316,0.26,176.12,176.05,9.0163]
[1641130197515,25.64785666,176.13,176.05,9.0163]
[1641130198818,0.26,176.13,176.05,9.0163]
[1641130199019,0.26,176.14,176.05,15.4963]
[1641130199417,1.87032489,176.15,176.05,15.4963]
[1641130199619,1.61032489,176.15,176.05,15.4963]
[1641130200048,78.951,176.16,176.05,15.4963]
[1641130200248,78.951,176.16,176.05,9.2763]
[1641130201048,79.211,176.16,176.08,8.5154]
[1641130201247,0.26,176.16,176.08,8.5154]
[1641130201449,0.26,176.16,176.08,9.2754]
[1641130201750,0.26,176.17,176.08,9.2754]
[1641130202151,1.61032489,176.14,176.08,9.2754]
[1641130202553,1.87032489,176.14,176.08,9.2754]
[1641130203950,1.87032489,176.14,176.06,8.5164]
[1641130204250,1.87032489,176.14,176.06,8.7764]
[1641130204449,1.87032489,176.14,176.06,9.2764]
[1641130204652,1.87032489,176.14,176.06,9.0164]
[1641130204849,1.61032489,176.13,176.06,9.0164]
[1641130205051,1.87032489,176.13,176.06,9.0164]
[1641130206252,1.87032489,176.13,176.06,0.5]
[1641130206451,1.87032489,176.13,176.04,10.5199]
[1641130207255,1.87032489,176.13,176.04,9.0174]
[1641130207853,29.7559072,176.1,176.04,9.0174]
[1641130208053,30.0159072,176.1,176.04,0.5]
[1641130208454,30.0159072,176.1,176.03,9.0183]
[1641130209155,30.0159072,176.1,176.03,9.2783]
[1641130210155,0.26,176.1,176.03,9.2783]
[1641130210355,1.61032489,176.11,176.03,9.2783]
[1641130210554,1.61032489,176.11,176.03,14.9903]
[1641130211259,1.61032489,176.14,176.03,14.9903]
[1641130211460,1.61032489,176.14,176.04,72.0894]
[1641130211655,1.87032489,176.14,176.04,72.0894]
[1641130211857,1.87032489,176.14,176.07,8.5159]
[1641130212257,1.87032489,176.14,176.07,9.0159]
[1641130212664,0.26,176.14,176.07,9.0159]
[1641130213062,1.87032489,176.15,176.07,9.0159]
[1641130214663,1.61032489,176.14,176.07,9.0159]
[1641130215065,1.87032489,176.14,176.07,9.0159]
[1641130215264,1.87032489,176.14,176.07,0.5]
[1641130215464,1.87032489,176.14,176.05,10.2446]
[1641130215664,1.87032489,176.14,176.05,9.7446]
[1641130215964,1.87032489,176.14,176.05,10.2446]
[1641130216665,0.26,176.14,176.05,10.2446]
[1641130217065,10.38742489,176.15,176.05,10.2446]
[1641130220669,1.61032489,176.14,176.05,10.2446]
[1641130220868,10.12782489,176.14,176.05,10.2446]
[1641130221068,10.38782489,176.14,176.05,10.2446]
[1641130226301,10.12782489,176.14,176.05,10.2446]
[1641130226472,1.61032489,176.14,176.05,10.5046]
[1641130227071,1.61032489,176.13,176.05,10.5046]
[1641130227471,1.87032489,176.13,176.05,10.5046]
[1641130227871,1.87032489,176.13,176.05,10.2446]
[1641130231279,1.61032489,176.13,176.05,10.2446]
[1641130231478,1.61032489,176.13,176.05,10.5046]
[1641130231875,1.61032489,176.13,176.05,10.2446]
[1641130232477,1.87032489,176.13,176.05,10.2446]
[1641130238796,0.26,176.13,176.05,10.2446]
[1641130238994,10.38772489,176.14,176.05,10.2446]
[1641130241710,10.38772489,176.14,176.04,72.0894]
[1641130241912,10.88772489,176.14,176.04,72.5894]
[1641130242110,10.88772489,176.14,176.04,0.5]
[1641130242310,1.61032489,176.12,176.04,0.5]
[1641130242511,1.87032489,176.12,176.01,1.7309]
[1641130242716,8.5197,176.1,176.01,9.7502]
[1641130243120,8.7797,176.1,176.01,1.2309]
[1641130243316,8.7797,176.1,175.99,77.2074]
[1641130243712,8.7797,176.1,175.99,77.4674]
[1641130244213,10.39002489,176.1,176.0,8.5199]
[1641130244414,10.39002489,176.1,176.0,9.0199]
[1641130244614,10.39002489,176.1,176.0,0.5]
[1641130245116,10.39002489,176.1,175.99,77.4674]
[1641130246317,10.39002489,176.1,175.99,85.9877]
[1641130246816,1.61032489,176.08,175.99,85.9877]
[1641130247017,10.39072489,176.08,175.99,85.9877]
[1641130247818,10.39072489,176.08,175.99,85.4877]
[1641130248020,10.39072489,176.08,175.99,77.2074]
[1641130248217,10.39072489,176.08,175.99,76.7074]
[1641130250420,8.7804,176.08,175.99,76.7074]
[1641130251123,10.39072489,176.08,175.99,76.7074]
[1641130251719,10.39072489,176.08,175.98,8.5208]
[1641130251922,10.39072489,176.08,175.98,9.0208]
[1641130252619,10.39072489,176.08,175.98,0.5]
[1641130252822,10.89072489,176.08,175.98,0.5]
[1641130253019,10.89072489,176.08,175.97,9.0213]
[1641130255422,10.39072489,176.08,175.97,9.0213]
[1641130258430,10.39072489,176.08,175.97,8.5213]
[1641130258630,10.39072489,176.08,175.93,73.5801]
[1641130258841,10.89072489,176.08,175.93,75.3688]
[1641130259234,10.89072489,176.08,175.93,74.8688]
[1641130259435,1.61032489,176.05,175.93,74.8688]
[1641130259640,28.74024566,176.04,175.93,1.2887]
[1641130259836,8.5242,176.01,175.93,1.2887]
[1641130260063,8.7842,176.01,175.93,1.2887]
[1641130262067,0.26,176.01,175.93,1.2887]
[1641130262570,8.7833,176.02,175.93,1.5487]
[1641130262769,8.7833,176.02,175.93,1.2887]
[1641130262968,8.7833,176.02,175.93,1.5487]
[1641130263170,0.26,176.02,175.93,10.0718]
[1641130263370,0.26,176.02,175.93,10.5718]
[1641130263568,31.11057055,176.04,175.93,10.5718]
[1641130263771,8.5233,176.03,175.93,10.3118]
[1641130263972,8.7833,176.03,175.93,10.3118]
[1641130264370,8.7833,176.03,175.93,10.5718]
[1641130267070,0.26,176.03,175.93,10.5718]
[1641130267472,38.02264566,176.04,175.93,10.5718]
[1641130268272,38.02264566,176.04,175.91,8.5237]
[1641130268472,38.02264566,176.04,175.92,0.5]
[1641130268770,39.63297055,176.04,175.92,0.5]
[1641130268977,39.63297055,176.04,175.9,78.501]
[1641130269376,39.63297055,176.04,175.94,8.5226]
[1641130269776,9.2824,176.04,175.94,9.0226]
[1641130270374,9.2824,176.04,175.94,9.2826]
[1641130270775,9.2824,176.04,175.95,1.3112]
[1641130270976,9.2824,176.04,175.95,10.0934]
[1641130271377,8.7824,176.04,175.95,10.0934]
[1641130271979,8.7824,176.04,175.95,10.5934]
[1641130274182,8.5224,176.04,175.95,10.5934]
[1641130274380,8.5218,176.05,175.95,10.5934]
[1641130275480,8.7818,176.05,175.95,10.5934]
[1641130276079,10.39212489,176.05,175.95,10.5934]
[1641130276481,10.89212489,176.05,175.95,10.5934]
[1641130276883,10.39212489,176.05,175.95,10.5934]
[1641130277383,8.7818,176.05,175.95,10.5934]
[1641130278081,10.39212489,176.05,175.95,10.5934]
[1641130281587,10.39212489,176.05,175.95,10.0934]
[1641130283691,10.89212489,176.05,175.95,10.0934]
[1641130284993,10.89212489,176.05,175.95,1.5712]
[1641130286817,10.39212489,176.05,175.95,1.5712]
[1641130287117,10.89212489,176.05,175.95,1.5712]
[1641130287517,10.39212489,176.05,175.95,1.5712]
[1641130288919,10.89212489,176.05,175.95,1.5712]
[1641130289318,10.39212489,176.05,175.95,1.5712]
[1641130290319,10.89212489,176.05,175.95,1.5712]
[1641130291822,10.89212489,176.05,175.95,10.0937]
[1641130292222,10.89212489,176.05,175.95,1.3112]
[1641130293223,8.5234,176.02,175.95,1.3112]
[1641130293623,8.7834,176.02,175.95,1.3112]
[1641130294630,8.7834,176.02,175.9,78.001]
[1641130295035,9.2834,176.02,175.9,78.001]
[1641130295229,10.89372489,176.02,175.9,78.501]
[1641130295430,10.89372489,176.02,175.9,78.001]
[1641130295930,10.89372489,176.02,175.9,78.761]
[1641130296129,1.61032489,176.01,175.9,78.501]
[1641130296331,23.35448669,176.0,175.9,78.001]
[1641130296530,23.35448669,176.0,175.88,73.6161]
[1641130296531,23.61448669,176.0,175.88,73.6161]
[1641130296729,23.61448669,176.0,175.84,78.2618]
[1641130296730,25.54118037,176.0,175.84,78.2618]
[1641130296931,25.54118037,176.0,175.84,78.7618]
[1641130297337,1.42669368,175.99,175.84,78.7618]
[1641130297564,1.68669368,175.99,175.84,78.7618]
[1641130297731,2.18669368,175.99,175.84,78.7618]
[1641130298342,28.4247,175.98,175.84,87.289]
[1641130298534,0.26,175.98,175.84,87.549]
[1641130298733,0.76,175.98,175.84,87.549]
[1641130299134,1.61032489,175.96,175.84,87.549]
[1641130299336,10.13662489,175.96,175.84,87.549]
[1641130299535,10.39662489,175.96,175.84,87.549]
[1641130299734,8.7863,175.96,175.84,87.549]
[1641130299935,1.61032489,175.99,175.84,87.549]
[1641130299936,1.61032489,175.99,175.84,88.97569368]
[1641130300445,1.61032489,175.99,175.84,87.549]
[1641130301035,10.13512489,175.99,175.84,87.549]
[1641130301237,10.39512489,175.99,175.84,87.549]
[1641130302438,8.7848,175.99,175.84,87.549]
[1641130304943,0.26,175.99,175.84,87.549]
[1641130305368,32.87959247,176.01,175.84,87.549]
[1641130305766,31.26926758,176.01,175.84,87.549]
[1641130306668,31.26926758,176.01,175.85,1.42669368]
[1641130306868,31.26926758,176.01,175.92,8.5234]
[1641130307067,0.26,176.01,175.92,8.7834]
[1641130307269,0.26,176.01,175.92,9.2834]
[1641130307467,8.7837,176.02,175.92,9.2834]
[1641130308269,8.7837,176.02,175.93,1.2737]
[1641130308470,8.7837,176.02,175.93,10.297]
[1641130309171,27.7138672,176.04,175.93,10.557]
[1641130309371,1.61032489,176.05,175.93,10.557]
[1641130309971,1.61032489,176.06,175.93,10.557]
[1641130310375,10.13172489,176.06,175.93,10.557]
[1641130310771,8.5214,176.06,175.93,10.557]
[1641130310973,8.7814,176.06,175.93,10.557]
[1641130311173,8.7814,176.06,175.93,82.5647]
[1641130311378,1.87032489,176.06,175.93,82.5647]
[1641130311972,0.26,176.06,175.93,82.5647]
[1641130312372,32.15717805,176.07,175.93,82.5647]
[1641130312779,1.87032489,176.07,175.93,82.5647]
[1641130312981,1.87032489,176.07,175.94,77.3511]
[1641130313180,8.5214,176.06,175.98,8.521]
[1641130313380,8.5214,176.06,175.99,1.2859]
[1641130313579,8.7814,176.06,175.99,1.2859]
[1641130313979,0.26,176.06,175.98,9.021]
[1641130314378,1.87032489,176.07,175.98,9.021]
[1641130314579,1.87032489,176.07,175.99,1.2202]
[1641130315181,10.39122489,176.07,175.99,1.2202]
[1641130319288,10.39122489,176.07,175.99,1.7202]
[1641130319487,1.87032489,176.07,175.99,10.2406]
[1641130320088,0.26,176.07,175.99,10.2406]
[1641130320488,1.87032489,176.08,175.99,10.2406]
[1641130321091,8.5209,176.07,175.99,1.2202]
[1641130321488,8.7809,176.07,175.99,1.2202]
[1641130321891,1.61032489,176.06,175.99,1.2202]
[1641130322088,1.87032489,176.06,175.99,1.2202]
[1641130323590,1.87032489,176.06,175.99,1.7202]
[1641130323990,0.26,176.06,175.99,1.7202]
[1641130324290,0.26,176.06,175.99,10.2406]
[1641130324493,10.39112489,176.08,175.99,10.2406]
[1641130324990,10.39112489,176.08,175.99,9.7406]
[1641130325594,10.39112489,176.08,175.99,1.2202]
[1641130325994,8.5214,176.06,175.99,1.2202]
[1641130326395,8.7814,176.06,175.99,1.2202]
[1641130327694,10.39172489,176.06,175.99,1.2202]
[1641130328798,1.61032489,176.05,175.99,1.2202]
[1641130329095,1.87032489,176.05,175.99,1.2202]
[1641130329297,0.26,176.05,175.99,1.2202]
[1641130329895,10.39172489,176.06,175.99,1.2202]
[1641130330294,8.7814,176.06,175.99,1.2202]
[1641130336000,10.39172489,176.06,175.99,1.2202]
[1641130340832,1.61032489,176.05,175.99,1.2202]
[1641130341037,10.39212489,176.05,175.99,1.2202]
[1641130341431,10.89212489,176.05,175.99,1.2202]
[1641130342232,2.37032489,176.05,175.99,1.2202]
[1641130342431,2.11032489,176.05,175.99,1.2202]
[1641130342633,0.5,176.05,175.99,1.2202]
[1641130343032,10.63162489,176.06,175.99,1.2202]
[1641130344134,10.89162489,176.06,175.99,1.2202]
[1641130347435,2.37032489,176.06,175.99,1.2202]
[1641130347635,0.76,176.06,175.99,1.2202]
[1641130347838,0.26,176.06,175.99,1.2202]
[1641130348037,10.89112489,176.07,175.99,1.2202]
[1641130351444,10.39112489,176.07,175.99,1.2202]
[1641130352750,1.61032489,176.06,175.99,1.2202]
[1641130352948,8.5217,176.05,175.99,1.2202]
[1641130353349,8.7817,176.05,175.99,1.2202]
[1641130354150,10.39202489,176.05,175.99,1.2202]
[1641130354550,8.7817,176.05,175.99,1.2202]
[1641130354750,0.26,176.05,175.99,1.2202]
[1641130355151,10.39152489,176.06,175.99,1.2202]
[1641130356254,8.7812,176.06,175.99,1.2202]
[1641130356852,10.39152489,176.06,175.99,1.2202]
[1641130357054,1.87032489,176.06,175.99,1.2202]
[1641130357452,0.26,176.06,175.99,1.2202]
[1641130357881,10.39112489,176.07,175.99,1.2202]
[1641130358481,10.39112489,176.07,175.99,1.7202]
[1641130359681,10.39112489,176.07,175.99,1.2202]
[1641130359881,10.39112489,176.07,175.99,1.7202]
[1641130360283,10.39112489,176.07,175.99,1.2202]
[1641130360885,10.39112489,176.07,175.99,1.7202]
[1641130361285,8.7808,176.07,175.99,1.7202]
[1641130361684,8.7808,176.07,175.99,1.2202]
[1641130362387,8.7808,176.07,175.99,1.7202]
[1641130362984,10.39112489,176.07,175.99,1.7202]
[1641130364385,10.39112489,176.07,175.99,1.2202]
[1641130365490,10.39112489,176.07,175.99,1.7202]
[1641130365688,10.39112489,176.07,175.99,1.2202]
[1641130366289,10.39112489,176.07,175.99,1.7202]
[1641130366488,10.39112489,176.07,175.99,1.2202]
[1641130367292,10.39112489,176.07,175.99,1.7202]
[1641130367489,10.39112489,176.07,175.99,1.2202]
[1641130367689,10.13112489,176.07,175.99,1.2202]
[1641130367894,1.61032489,176.07,175.99,10.2406]
[1641130368692,10.13052489,176.08,175.99,10.2406]
[1641130369092,10.39052489,176.08,175.99,10.2406]
[1641130369498,10.89052489,176.08,175.99,9.7406]
[1641130369693,10.89052489,176.08,175.99,1.2202]
[1641130369894,1.61032489,176.07,175.99,1.7202]
[1641130370093,1.87032489,176.07,175.99,1.2202]
[1641130370294,8.5212,176.06,175.99,1.2202]
[1641130370493,8.7812,176.06,175.99,1.4802]
[1641130370693,0.26,176.06,175.99,10.5009]
[1641130370993,0.26,176.06,175.99,10.0009]
[1641130371195,1.87032489,176.07,175.99,10.5009]
[1641130372194,10.39102489,176.07,175.99,10.5009]
[1641130372394,1.87032489,176.07,175.99,10.5009]
[1641130372596,1.61032489,176.07,175.99,10.5009]
[1641130373196,1.61032489,176.1,175.99,11.92759368]
[1641130373896,1.87032489,176.1,175.99,11.92759368]
[1641130376496,10.38962489,176.1,175.99,11.92759368]
[1641130376898,1.61032489,176.09,175.99,11.42759368]
[1641130377203,1.87032489,176.09,175.99,11.42759368]
[1641130378203,1.87032489,176.09,175.99,11.92759368]
[1641130388237,1.87032489,176.09,175.99,11.42759368]
[1641130389542,1.87032489,176.09,175.99,11.92759368]
[1641130392947,0.26,176.09,175.99,11.92759368]
[1641130393548,8.7793,176.1,175.99,11.92759368]
[1641130394247,10.38962489,176.1,175.99,11.92759368]
[1641130394650,1.87032489,176.1,175.99,11.92759368]
[1641130398852,10.38962489,176.1,175.99,11.92759368]
[1641130401052,1.87032489,176.1,175.99,11.92759368]
[1641130402052,0.26,176.1,175.99,11.92759368]
[1641130402455,10.38902489,176.11,175.99,11.92759368]
[1641130403953,1.61032489,176.1,175.99,11.92759368]
[1641130404353,1.87032489,176.1,175.99,11.92759368]
[1641130404555,0.26,176.1,175.99,11.92759368]
[1641130404959,1.61032489,176.1,175.99,11.92759368]
[1641130405159,1.87032489,176.1,175.99,11.92759368]
[1641130406255,0.26,176.1,175.99,11.92759368]
[1641130406458,10.38902489,176.11,175.99,11.92759368]
[1641130410789,8.7787,176.11,175.99,11.92759368]
[1641130412187,8.5187,176.11,175.99,11.92759368]
[1641130413490,8.7787,176.11,175.99,11.92759368]
[1641130414093,0.26,176.11,175.99,11.92759368]
[1641130414392,9.9952,176.12,175.99,11.92759368]
[1641130414599,9.9952,176.12,175.99,85.61549368]
[1641130415695,9.7352,176.12,175.99,85.61549368]
[1641130416096,1.2168,176.12,175.99,85.61549368]
[1641130417297,1.4768,176.12,175.99,85.61549368]
[1641130425006,9.9952,176.12,175.99,83.9288]
[1641130425806,11.60552489,176.12,175.99,83.9288]
[1641130426308,1.61032489,176.11,175.99,83.9288]
[1641130426506,1.87032489,176.11,175.99,84.1888]
[1641130426706,10.38922489,176.11,175.99,84.1888]
[1641130428606,1.2493,176.1,175.99,84.1888]
[1641130429106,1.5093,176.1,175.99,84.1888]
[1641130429706,1.2493,176.1,175.99,84.1888]
[1641130429907,1.5093,176.1,175.99,84.1888]
[1641130431009,1.5093,176.1,175.99,83.6888]
[1641130432413,1.5093,176.1,175.99,84.1888]
[1641130446667,1.5093,176.1,175.99,83.9288]
[1641130446853,1.5093,176.1,175.99,10.2409]
[1641130447054,2.0093,176.1,175.99,10.2409]
[1641130447255,3.61962489,176.1,175.99,10.2409]
[1641130447856,3.61962489,176.1,175.99,9.7409]
[1641130448057,1.61032489,176.08,175.99,9.7409]
[1641130448458,1.87032489,176.08,175.99,9.7409]
[1641130448659,0.26,176.08,175.99,10.0009]
[1641130449057,2.0093,176.1,175.99,10.0009]
[1641130449258,1.5093,176.1,175.99,10.5009]
[1641130450259,10.0285,176.1,175.99,10.5009]
[1641130452065,10.0285,176.1,175.99,10.0009]
[1641130453464,10.0285,176.1,175.99,10.5009]
[1641130455467,10.0285,176.1,175.99,10.0009]
[1641130456968,10.0285,176.1,175.99,10.5009]
[1641130459172,11.63882489,176.1,175.99,10.0009]
[1641130460476,11.63882489,176.1,175.99,10.5009]
[1641130461976,10.0285,176.1,175.99,10.5009]
[1641130462781,1.5093,176.1,175.99,10.5009]
[1641130465384,1.5093,176.1,175.99,16.1879]
[1641130468583,1.5093,176.1,175.99,10.5009]
[1641130474688,1.5093,176.1,175.99,10.0009]
[1641130475993,1.5093,176.1,175.99,10.5009]
[1641130482122,1.5093,176.1,175.99,11.92759368]
[1641130482724,1.5093,176.1,175.99,10.5009]
[1641130483527,1.5093,176.1,175.99,11.92759368]
[1641130483730,1.5093,176.1,175.99,10.5009]
[1641130493243,1.5093,176.1,175.99,83.9215]
[1641130503791,1.5093,176.1,175.99,83.6615]
[1641130505490,1.5093,176.1,175.99,83.9215]
[1641130508801,1.2493,176.1,175.99,83.9215]
[1641130510906,1.5093,176.1,175.99,83.9215]
[1641130515228,1.2493,176.1,175.99,83.9215]
[1641130516829,1.5093,176.1,175.99,83.9215]
[1641130517329,1.5093,176.1,175.99,83.6615]
[1641130518130,2.0093,176.1,175.99,83.6615]
[1641130518335,10.5286,176.1,175.99,83.6615]
[1641130518532,10.5286,176.1,175.99,83.9215]
[1641130518733,10.5286,176.1,175.99,83.6615]
[1641130520235,10.5286,176.1,175.99,83.9215]
[1641130520437,12.13892489,176.1,175.99,83.6615]
[1641130520636,12.13892489,176.1,175.99,8.5207]
[1641130521237,1.61032489,176.09,175.98,8.5214]
[1641130521439,2.11032489,176.09,175.98,8.5214]
[1641130521638,24.07937736,176.05,175.98,8.5214]
[1641130522138,24.33937736,176.05,175.98,8.5214]
[1641130522543,24.33937736,176.05,175.98,9.0214]
[1641130523139,32.86127736,176.05,175.96,11.1119]
[1641130523342,32.86127736,176.05,175.96,11.6119]
[1641130523740,32.86127736,176.05,175.96,10.3226]
[1641130523945,32.86127736,176.05,175.96,9.8226]
[1641130524342,32.86127736,176.05,175.95,8.5228]
[1641130524546,8.5228,176.03,175.95,8.5228]
[1641130524842,8.5228,176.03,175.95,9.0228]
[1641130525041,8.7828,176.03,175.95,9.0228]
[1641130526143,8.7828,176.03,175.95,0.5]
[1641130526543,8.7828,176.03,175.94,9.0232]
[1641130527248,8.7828,176.03,175.94,8.5232]
[1641130527446,8.7828,176.03,175.94,9.0232]
[1641130533881,1.2549,176.04,175.94,9.0232]
[1641130534056,1.2549,176.04,175.94,9.2832]
[1641130535359,1.61032489,176.07,175.95,1.2116]
[1641130535659,1.61032489,176.07,175.95,9.00029368]
[1641130535859,1.61032489,176.07,175.96,1.42669368]
[1641130536160,2.82212489,176.11,175.96,1.68669368]
[1641130536359,1.2955,176.1,176.02,8.5193]
[1641130536559,1.61032489,176.11,176.02,8.5193]
[1641130536760,0.26,176.1,176.02,9.0193]
[1641130536963,0.26,176.11,176.02,9.0193]
[1641130537360,8.5198,176.1,176.02,8.5193]
[1641130537564,8.7798,176.1,176.02,9.0193]
[1641130553797,8.7798,176.1,176.01,8.5202]
[1641130554002,9.2798,176.1,176.01,8.5202]
[1641130558504,9.2798,176.1,175.99,77.7344]
[1641130558705,9.2798,176.1,176.0,8.5208]
[1641130558907,9.2798,176.1,176.0,9.0208]
[1641130560511,1.61032489,176.09,176.0,9.0208]
[1641130560706,8.5207,176.07,176.0,9.0208]
[1641130561208,8.7807,176.07,176.0,9.0208]
[1641130567817,1.61032489,176.09,176.0,10.44749368]
[1641130568017,1.61032489,176.09,176.0,10.70749368]
[1641130568616,24.45075381,176.12,176.01,1.257]
[1641130568917,24.95075381,176.12,176.04,8.5188]
[1641130569117,8.5193,176.1,176.01,3.18369368]
[1641130569317,25.21075381,176.12,176.01,1.757]
[1641130569718,26.8210787,176.12,176.01,10.2768]
[1641130571320,8.5198,176.09,176.01,10.2768]
[1641130571519,0.26,176.09,176.01,10.2768]
[1641130572321,0.76,176.11,176.01,10.2768]
[1641130572521,0.5,176.11,176.01,10.2768]
[1641130572720,25.21075381,176.12,176.01,10.2768]
[1641130572920,8.5193,176.1,176.01,10.2768]
[1641130573123,8.7793,176.1,176.01,10.2768]
[1641130576447,9.2793,176.1,176.01,10.2768]
[1641130576848,8.7793,176.1,176.01,10.2768]
[1641130582056,10.38962489,176.1,176.01,10.2768]
[1641130585959,10.12962489,176.1,176.01,10.2768]
[1641130587062,8.5193,176.1,176.01,10.2768]
[1641130587262,8.7793,176.1,176.01,10.2768]
[1641130595368,8.7793,176.1,176.01,11.70349368]
[1641130595567,8.7793,176.1,176.01,10.2768]
[1641130602503,8.7793,176.1,176.01,9.7768]
[1641130602702,8.7793,176.1,176.01,1.257]
[1641130602903,9.2793,176.1,176.01,1.257]
[1641130603702,1.61032489,176.09,176.01,1.257]
[1641130603903,8.5212,176.06,176.01,1.257]
[1641130604104,26.36248524,176.05,176.01,1.257]
[1641130604503,26.62248524,176.05,176.01,1.257]
[1641130604904,0.26,176.05,176.01,1.257]
[1641130605105,0.26,176.06,176.01,1.257]
[1641130605506,8.7808,176.07,176.01,1.257]
[1641130605807,31.78889284,176.07,176.01,1.257]
[1641130607008,32.28889284,176.07,176.01,1.257]
[1641130607306,32.02889284,176.07,176.01,1.257]
[1641130609108,32.28889284,176.07,176.01,1.257]
[1641130609710,31.78889284,176.07,176.01,1.257]
[1641130611712,31.78889284,176.07,175.99,85.0498]
[1641130611912,31.78889284,176.07,175.99,85.5498]
[1641130612512,32.28889284,176.07,175.99,77.0286]
[1641130612713,32.28889284,176.07,175.99,0.5]
[1641130612912,32.28889284,176.07,175.98,8.5217]
[1641130612913,32.28889284,176.07,175.98,9.0217]
[1641130613711,31.78889284,176.07,175.98,9.0217]
[1641130613912,31.78889284,176.07,175.99,1.2375]
[1641130614414,31.78889284,176.07,175.99,1.7375]
[1641130618516,31.78889284,176.07,175.99,1.2375]
[1641130619316,32.28889284,176.07,175.99,1.2375]
[1641130620920,31.78889284,176.07,175.99,1.2375]
[1641130621119,31.78889284,176.07,175.99,9.7587]
[1641130621523,31.78889284,176.07,175.99,10.2587]
[1641130624125,8.7808,176.07,175.99,10.2587]
[1641130624827,0.26,176.07,175.99,11.68539368]
[1641130625028,0.26,176.08,175.99,18.05639368]
[1641130625425,8.5199,176.09,175.99,18.05639368]